bitfinex/quotes_BTCUSD_20240731
["timestamp","ask_amount","ask_price","bid_price","bid_amount"]
[1722415542847,0.00848,66455.0,66454.0,2.32327402]
[1722415546154,0.00848,66455.0,66454.0,2.32327389]
[1722415547141,0.00848,66455.0,66454.0,2.64723389]
[1722415547587,0.00848,66460.0,66454.0,2.64723389]
[1722415547588,0.00848,66460.0,66459.0,1.594716]
[1722415547791,0.00848,66460.0,66459.0,1.91950989]
[1722415548199,0.00848,66460.0,66459.0,1.92950989]
[1722415548408,0.00848,66460.0,66459.0,1.89650989]
[1722415549463,0.00848,66460.0,66459.0,1.78544904]
[1722415549632,0.00848,66460.0,66459.0,2.0355619]
[1722415549842,0.00848,66460.0,66459.0,1.89650547]
[1722415550047,0.00848,66460.0,66459.0,1.91050547]
[1722415552947,0.00848,66460.0,66459.0,1.91050546]
[1722415553142,0.00848,66460.0,66459.0,1.92450546]
[1722415553771,0.00848,66460.0,66459.0,1.93342605]
[1722415556174,0.00848,66460.0,66459.0,1.80836963]
[1722415556382,0.00848,66460.0,66459.0,1.93342616]
[1722415557593,0.00848,66460.0,66459.0,2.00571616]
[1722415557780,0.00848,66460.0,66459.0,2.08981616]
[1722415558012,0.00848,66460.0,66459.0,2.11281616]
[1722415558216,0.00848,66460.0,66459.0,2.41375316]
[1722415558901,0.00848,66465.0,66464.0,1.667027]
[1722415559086,0.0676863,66472.0,66464.0,1.667027]
[1722415559087,0.00848,66475.0,66468.0,0.569744]
[1722415559292,0.00848,66475.0,66468.0,2.01242157]
[1722415559503,0.00848,66475.0,66468.0,2.18826104]
[1722415559708,0.00848,66475.0,66468.0,2.3132946]
[1722415560577,0.00848,66475.0,66468.0,2.3272946]
[1722415560778,0.00848,66475.0,66468.0,2.3132946]
[1722415561191,0.00848,66475.0,66468.0,2.3272946]
[1722415562430,0.00848,66475.0,66468.0,2.3412946]
[1722415562845,0.00848,66475.0,66468.0,2.34129095]
[1722415563971,0.00848,66475.0,66468.0,2.32729095]
[1722415564426,0.00848,66475.0,66468.0,2.34129095]
[1722415564810,0.00848,66475.0,66468.0,2.32729095]
[1722415565018,0.00848,66475.0,66468.0,2.34129095]
[1722415565545,0.00848,66475.0,66468.0,2.32729095]
[1722415565951,0.00848,66475.0,66468.0,2.34129095]
[1722415566120,0.00133,66469.0,66468.0,2.34129003]
[1722415568051,0.00133,66469.0,66468.0,2.35042971]
[1722415570689,0.00133,66469.0,66468.0,2.33642971]
[1722415570888,0.00133,66469.0,66468.0,2.35042971]
[1722415571308,0.00133,66469.0,66468.0,2.33642971]
[1722415571775,0.00133,66469.0,66468.0,2.35042971]
[1722415572211,0.00133,66469.0,66468.0,2.33642971]
[1722415572630,0.00133,66469.0,66468.0,2.35042971]
[1722415572879,0.00133,66469.0,66468.0,2.26402948]
[1722415573108,0.00133,66469.0,66468.0,2.35042948]
[1722415573928,0.00133,66469.0,66468.0,2.26402948]
[1722415574137,0.00133,66469.0,66468.0,2.32842948]
[1722415574554,0.00133,66469.0,66468.0,2.00453348]
[1722415575164,0.00133,66469.0,66468.0,1.87950472]
[1722415575363,0.00133,66469.0,66468.0,2.00453519]
[1722415575571,0.00133,66469.0,66468.0,1.94013519]
[1722415576186,0.00133,66469.0,66468.0,1.94013531]
[1722415577239,0.00133,66469.0,66468.0,2.26103131]
[1722415577485,0.00133,66469.0,66468.0,2.26303131]
[1722415579604,0.00133,66469.0,66468.0,2.2630324]
[1722415581846,0.00133,66469.0,66468.0,2.2410324]
[1722415583056,0.00133,66469.0,66468.0,2.16413543]
[1722415586127,0.00133,66469.0,66468.0,2.18613543]
[1722415586365,0.00133,66469.0,66468.0,2.18613752]
[1722415586783,0.00133,66469.0,66468.0,2.26203752]
[1722415586982,0.00848,66475.0,66474.0,1.829079]
[1722415587132,0.00848,66475.0,66474.0,2.20474884]
[1722415588098,0.00848,66475.0,66474.0,2.21874884]
[1722415588300,0.00848,66475.0,66474.0,1.93187984]
[1722415589265,0.00848,66475.0,66474.0,1.84547984]
[1722415589477,0.07228,66475.0,66474.0,1.63254304]
[1722415589687,0.07228,66475.0,66474.0,1.71894304]
[1722415589881,0.07228,66475.0,66474.0,1.84397091]
[1722415592914,0.00848,66475.0,66474.0,1.85597091]
[1722415593131,0.00848,66475.0,66474.0,1.85597148]
[1722415593340,0.00848,66475.0,66474.0,1.85397148]
[1722415594175,0.00848,66475.0,66474.0,1.84397148]
[1722415596327,0.00848,66475.0,66474.0,1.71894304]
[1722415596629,0.00848,66475.0,66474.0,1.84397133]
[1722415602250,0.00848,66475.0,66474.0,1.54310233]
[1722415602684,0.05361329,66475.0,66474.0,1.54310233]
[1722415603135,0.05364869,66475.0,66474.0,1.54310846]
[1722415603335,0.21893304,66475.0,66474.0,1.45670846]
[1722415603618,0.26410174,66475.0,66474.0,1.20607542]
[1722415603976,0.15118,66475.0,66474.0,1.29247542]
[1722415604182,0.15118,66475.0,66474.0,0.99160642]
[1722415604576,0.15118,66475.0,66474.0,1.167441]
[1722415604987,0.15118,66475.0,66474.0,0.028]
[1722415606049,0.301612,66475.0,66474.0,0.014]
[1722415606263,0.301612,66475.0,66474.0,0.028]
[1722415606658,0.15118,66475.0,66474.0,0.028]
[1722415606854,0.15118,66475.0,66474.0,0.014]
[1722415607134,0.15118,66475.0,66474.0,0.026]
[1722415607769,0.15118,66475.0,66474.0,0.012]
[1722415608144,0.28660034,66475.0,66474.0,0.026]
[1722415608361,0.28660034,66475.0,66474.0,0.012]
[1722415608904,0.28660034,66475.0,66474.0,0.026]
[1722415609112,0.28660034,66475.0,66474.0,0.176434]
[1722415609316,0.28660034,66475.0,66474.0,0.026]
[1722415609896,0.15118,66475.0,66474.0,0.026]
[1722415610108,0.28657169,66475.0,66474.0,0.026]
[1722415610316,0.15118,66475.0,66474.0,0.026]
[1722415615181,0.90334,66475.0,66474.0,0.026]
[1722415615383,0.43692166,66475.0,66474.0,0.026]
[1722415615584,0.301612,66475.0,66474.0,0.026]
[1722415615792,0.43692166,66475.0,66474.0,0.026]
[1722415616653,0.43687991,66475.0,66474.0,0.026]
[1722415616794,0.28644791,66475.0,66474.0,0.026]
[1722415617221,0.15118,66475.0,66474.0,0.026]
[1722415618866,0.301612,66475.0,66474.0,0.026]
[1722415621655,0.15118,66475.0,66474.0,0.026]
[1722415621860,0.301612,66475.0,66474.0,0.026]
[1722415622268,0.602476,66475.0,66474.0,0.026]
[1722415622491,0.301612,66475.0,66474.0,0.026]
[1722415623765,0.602476,66475.0,66474.0,0.026]
[1722415624270,0.90334,66475.0,66474.0,0.026]
[1722415624661,0.98974,66475.0,66474.0,0.026]
[1722415625078,1.44123704,66475.0,66474.0,0.026]
[1722415625641,1.18913413,66475.0,66474.0,0.026]
[1722415625856,1.05397304,66475.0,66474.0,0.026]
[1722415626059,1.18913368,66475.0,66474.0,0.026]
[1722415626642,1.05397304,66475.0,66474.0,0.026]
[1722415627290,1.18912349,66475.0,66474.0,0.026]
[1722415627489,1.05397304,66475.0,66474.0,0.026]
[1722415628699,1.18912349,66475.0,66474.0,0.025]
[1722415628897,1.28490406,66475.0,66474.0,0.025]
[1722415629106,1.45061761,66475.0,66474.0,0.025]
[1722415629912,1.45061827,66475.0,66474.0,0.025]
[1722415630130,0.752217,66470.0,66469.0,0.000913]
[1722415630334,0.888917,66470.0,66469.0,0.000913]
[1722415631169,1.34981817,66470.0,66469.0,0.000913]
[1722415631371,1.34981817,66470.0,66469.0,0.008913]
[1722415631576,1.4849143,66470.0,66469.0,0.008913]
[1722415631728,1.34981817,66470.0,66469.0,0.008913]
[1722415631925,1.34981817,66470.0,66469.0,0.000913]
[1722415632162,1.34981817,66470.0,66469.0,0.011913]
[1722415632532,1.34981817,66470.0,66469.0,0.000913]
[1722415632718,1.34981817,66470.0,66469.0,0.009913]
[1722415633166,1.34981817,66470.0,66469.0,0.000913]
[1722415633373,1.34981919,66470.0,66469.0,0.006913]
[1722415633600,1.50051351,66470.0,66469.0,0.010913]
[1722415633802,1.50051351,66470.0,66469.0,0.004913]
[1722415634220,1.34981919,66470.0,66469.0,0.005913]
[1722415635155,1.34981919,66470.0,66469.0,0.001913]
[1722415635362,1.34981919,66470.0,66469.0,0.005913]
[1722415636555,1.34043704,66470.0,66469.0,0.005913]
[1722415636767,1.34981919,66470.0,66469.0,0.005913]
[1722415638040,1.50051351,66470.0,66469.0,0.005913]
[1722415638476,1.81140051,66470.0,66469.0,0.005913]
[1722415638672,1.90140051,66470.0,66469.0,0.005913]
[1722415639309,2.06232545,66470.0,66469.0,0.005913]
[1722415639424,1.91040949,66470.0,66469.0,0.005913]
[1722415639868,1.90102734,66470.0,66469.0,0.005913]
[1722415640070,1.9104098,66470.0,66469.0,0.005913]
[1722415640269,2.07232045,66470.0,66469.0,0.005913]
[1722415640467,1.9104098,66470.0,66469.0,0.005913]
[1722415640704,2.25102045,66470.0,66469.0,0.005913]
[1722415640865,2.27402045,66470.0,66469.0,0.005913]
[1722415641285,2.1221098,66470.0,66469.0,0.005913]
[1722415641485,2.27402412,66470.0,66469.0,0.004913]
[1722415641809,1.9116298,66470.0,66469.0,0.001913]
[1722415642010,1.6971428,66470.0,66469.0,0.001913]
[1722415642150,1.6971428,66470.0,66469.0,0.002913]
[1722415642151,1.7011428,66470.0,66469.0,0.002913]
[1722415643406,1.70117105,66470.0,66469.0,0.002913]
[1722415643650,1.61477105,66470.0,66469.0,0.002913]
[1722415643836,1.70117105,66470.0,66469.0,0.002913]
[1722415644039,1.85186537,66470.0,66469.0,0.002913]
[1722415644239,1.69992283,66470.0,66469.0,0.002913]
[1722415646656,1.69992285,66470.0,66469.0,0.002913]
[1722415649796,1.69992284,66470.0,66469.0,0.002913]
[1722415650629,2.05380984,66470.0,66469.0,0.002913]
[1722415650833,2.21250984,66470.0,66469.0,0.002913]
[1722415651040,2.25386728,66470.0,66469.0,0.002913]
[1722415653455,2.20312734,66470.0,66469.0,0.002913]
[1722415653656,2.25356833,66470.0,66469.0,0.002913]
[1722415656434,2.55445533,66470.0,66469.0,0.002913]
[1722415656864,2.50401434,66470.0,66469.0,0.002913]
[1722415656978,2.55458083,66470.0,66469.0,0.002913]
[1722415657182,1.192628,66456.0,66455.0,0.000913]
[1722415657393,1.43904502,66456.0,66455.0,0.000913]
[1722415658092,1.59116329,66456.0,66455.0,0.000913]
[1722415658463,1.6712615,66456.0,66455.0,0.000913]
[1722415658615,1.6712615,66456.0,66455.0,0.009913]
[1722415658801,1.6712615,66456.0,66455.0,0.015913]
[1722415659158,1.59116329,66456.0,66455.0,0.015913]
[1722415660374,1.4390453,66456.0,66455.0,0.015913]
[1722415660589,1.4490453,66456.0,66455.0,0.015913]
[1722415660798,1.4390453,66456.0,66455.0,0.015913]
[1722415661427,1.4390453,66456.0,66455.0,0.006913]
[1722415661632,1.58973962,66456.0,66455.0,0.004913]
[1722415662012,1.89069062,66456.0,66455.0,0.001913]
[1722415662419,1.90069062,66456.0,66455.0,0.003913]
[1722415663212,1.90069062,66456.0,66455.0,0.000913]
[1722415663536,2.00069062,66456.0,66455.0,0.000913]
[1722415663734,2.000691,66456.0,66455.0,0.000913]
[1722415664245,2.043691,66456.0,66455.0,0.000913]
[1722415664606,2.043691,66456.0,66455.0,0.002913]
[1722415665547,2.202391,66456.0,66455.0,0.002913]
[1722415666294,2.19148498,66456.0,66455.0,0.002913]
[1722415666719,2.19130392,66456.0,66455.0,0.002913]
[1722415669867,2.2325373,66456.0,66455.0,0.002913]
[1722415670117,2.2525373,66456.0,66455.0,0.002913]
[1722415670480,2.23259175,66456.0,66455.0,0.002913]
[1722415672309,2.15519175,66456.0,66455.0,0.002913]
[1722415672529,2.11390417,66456.0,66455.0,0.002913]
[1722415673965,2.15525014,66456.0,66455.0,0.002913]
[1722415674165,2.11390417,66456.0,66455.0,0.002913]
[1722415676512,2.15521076,66456.0,66455.0,0.002913]
[1722415677275,2.10451928,66456.0,66455.0,0.002913]
[1722415677392,2.15512264,66456.0,66455.0,0.002913]
[1722415681767,2.17512264,66456.0,66455.0,0.002913]
[1722415682264,2.15512264,66456.0,66455.0,0.002913]
[1722415682965,2.17512264,66456.0,66455.0,0.002913]
[1722415683110,2.15512264,66456.0,66455.0,0.002913]
[1722415684168,2.10451928,66456.0,66455.0,0.002913]
[1722415684413,2.15446537,66456.0,66455.0,0.002913]
[1722415684621,1.36282005,66456.0,66455.0,0.078613]
[1722415684826,1.44922005,66456.0,66455.0,0.142713]
[1722415685131,1.10770769,66456.0,66455.0,0.142713]
[1722415685570,1.40865869,66456.0,66455.0,0.142713]
[1722415686086,1.55052456,66456.0,66455.0,0.142713]
[1722415687355,1.54113983,66456.0,66455.0,0.142713]
[1722415687616,1.55052368,66456.0,66455.0,0.142713]
[1722415690514,1.59126489,66456.0,66455.0,0.078613]
[1722415691094,1.54113983,66456.0,66455.0,0.078613]
[1722415691296,1.59135844,66456.0,66455.0,0.078613]
[1722415694581,1.59133579,66456.0,66455.0,0.078613]
[1722415698025,1.59136594,66456.0,66455.0,0.078613]
[1722415701573,1.59158559,66456.0,66455.0,0.078613]
[1722415703172,1.59241559,66456.0,66455.0,0.078613]
[1722415704874,1.54196983,66456.0,66455.0,0.078613]
[1722415705024,1.59232536,66456.0,66455.0,0.078613]
[1722415706797,1.90327636,66456.0,66455.0,0.002913]
[1722415707542,1.94627636,66456.0,66455.0,0.002913]
[1722415707939,2.24722736,66456.0,66455.0,0.002913]
[1722415708165,2.19687183,66456.0,66455.0,0.002913]
[1722415708369,2.24715977,66456.0,66455.0,0.002913]
[1722415708716,2.24715977,66456.0,66455.0,0.003913]
[1722415708885,2.2467744,66456.0,66455.0,0.003913]
[1722415709481,2.1603744,66456.0,66455.0,0.003913]
[1722415709690,2.2467744,66456.0,66455.0,0.001913]
[1722415710153,2.20187183,66456.0,66455.0,0.002913]
[1722415710554,2.20187183,66456.0,66455.0,0.001913]
[1722415710766,1.38436,66452.0,66451.0,0.0015542]
[1722415710900,1.78549304,66452.0,66451.0,0.0015542]
[1722415711104,1.88549304,66452.0,66451.0,0.0015542]
[1722415711306,2.18646204,66452.0,66451.0,0.0015542]
[1722415712025,2.18646204,66452.0,66451.0,0.0025542]
[1722415712224,2.33715636,66452.0,66451.0,0.0025542]
[1722415712423,2.49585636,66452.0,66451.0,0.0025542]
[1722415713209,2.50185636,66452.0,66451.0,0.002]
[1722415713406,2.55236439,66452.0,66451.0,0.0035542]
[1722415713633,2.55236439,66452.0,66451.0,0.002]
[1722415713832,1.982651,66451.0,66450.0,3.0]
[1722415714014,2.45748639,66451.0,66450.0,3.0]
[1722415714207,2.70211865,66451.0,66450.0,3.0]
[1722415714434,3.00309165,66451.0,66450.0,3.0]
[1722415714613,3.00309383,66451.0,66450.0,3.0]
[1722415715381,2.75846157,66451.0,66450.0,3.0]
[1722415715819,2.75846157,66451.0,66450.0,3.001]
[1722415716428,2.76446157,66451.0,66450.0,3.002]
[1722415717892,2.71395136,66451.0,66450.0,3.002]
[1722415718091,2.46401719,66451.0,66450.0,3.002]
[1722415718452,1.94014987,66451.0,66450.0,3.002]
[1722415720207,1.78144987,66451.0,66450.0,3.002]
[1722415720410,1.78134829,66451.0,66450.0,3.002]
[1722415720849,2.00345986,66451.0,66450.0,3.002]
[1722415721258,1.73041104,66451.0,66450.0,3.002]
[1722415721429,1.93226664,66451.0,66450.0,3.002]
[1722415721658,2.15437822,66451.0,66450.0,3.002]
[1722415723603,2.14437822,66451.0,66450.0,3.002]
[1722415723825,2.15437822,66451.0,66450.0,3.002]
[1722415724114,1.06022632,66451.0,66450.0,3.1413]
[1722415724331,0.61747797,66451.0,66450.0,3.1413]
[1722415724535,0.91845097,66451.0,66450.0,3.1413]
[1722415724718,0.90906504,66451.0,66450.0,3.1413]
[1722415724964,0.61747647,66451.0,66450.0,3.1413]
[1722415725171,0.61747647,66451.0,66450.0,3.378189]
[1722415725172,0.006,66451.0,66450.0,3.378189]
[1722415725601,0.14132624,66451.0,66450.0,3.378189]
[1722415725807,0.006,66451.0,66450.0,3.378189]
[1722415725973,0.006,66451.0,66450.0,3.679167]
[1722415726174,0.006,66451.0,66450.0,3.979145]
[1722415726407,0.006,66451.0,66450.0,3.678167]
[1722415726581,0.13532624,66453.0,66452.0,0.150484]
[1722415726811,0.13532624,66453.0,66452.0,0.8980762]
[1722415727013,0.00083,66456.0,66455.0,0.294577]
[1722415727215,0.00083,66456.0,66455.0,0.380977]
[1722415727372,0.00083,66456.0,66455.0,0.681932]
[1722415728258,0.00083,66456.0,66455.0,0.982887]
[1722415728463,0.00083,66456.0,66455.0,0.992887]
[1722415728665,0.11352899,66456.0,66455.0,1.005887]
[1722415728927,0.00083,66456.0,66455.0,1.005887]
[1722415729161,0.0909879,66456.0,66455.0,1.005887]
[1722415729341,0.00083,66456.0,66455.0,1.005887]
[1722415729551,0.00083,66456.0,66455.0,0.704932]
[1722415729721,0.0909879,66456.0,66455.0,0.704932]
[1722415729931,0.0909879,66456.0,66455.0,0.691932]
[1722415730318,0.0909879,66456.0,66455.0,0.694932]
[1722415730561,0.0909879,66456.0,66455.0,0.681932]
[1722415730743,0.0909879,66456.0,66455.0,0.691932]
[1722415730949,0.0909879,66456.0,66455.0,0.705932]
[1722415731153,0.0909879,66456.0,66455.0,0.996887]
[1722415731353,0.00083,66456.0,66455.0,0.996887]
[1722415731555,0.00083,66456.0,66455.0,1.009887]
[1722415732117,0.06840565,66456.0,66455.0,1.310842]
[1722415732327,0.00083,66456.0,66455.0,1.310842]
[1722415754088,0.00083,66456.0,66455.0,0.923487]
[1722415754526,0.00083,66456.0,66455.0,0.9250412]
[1722415755056,0.00083,66456.0,66455.0,0.923487]
[1722415755301,0.00083,66456.0,66455.0,0.9250412]
[1722415755549,0.00083,66456.0,66455.0,0.321577]
[1722415755815,0.00083,66456.0,66455.0,0.257677]
[1722415756055,0.00083,66456.0,66455.0,0.558632]
[1722415757003,0.00083,66456.0,66455.0,0.257677]
[1722415757316,0.00083,66456.0,66455.0,0.558632]
[1722415757792,0.00083,66456.0,66455.0,0.177477]
[1722415758298,0.00083,66456.0,66455.0,0.1790312]
[1722415758535,0.00083,66456.0,66455.0,0.177477]
[1722415758761,0.00083,66456.0,66455.0,0.1790312]
[1722415759289,0.00083,66456.0,66455.0,0.177477]
[1722415759529,0.06263,66456.0,66455.0,0.177477]
[1722415759790,0.00083,66456.0,66455.0,0.027]
[1722415760732,0.00083,66456.0,66455.0,0.02779245]
[1722415761001,0.00083,66456.0,66455.0,0.027]
[1722415761498,0.00083,66456.0,66455.0,0.0285542]
[1722415761738,0.00083,66456.0,66455.0,0.027]
[1722415761739,0.08263,66456.0,66455.0,0.027]
[1722415762001,0.534056,66456.0,66455.0,0.027]
[1722415762529,0.57901107,66456.0,66455.0,0.027]
[1722415763274,0.534056,66456.0,66455.0,0.027]
[1722415763499,0.21873761,66456.0,66455.0,0.027]
[1722415764009,0.51968861,66456.0,66455.0,0.027]
[1722415764250,0.151305,66456.0,66455.0,0.027]
[1722415764479,0.24121514,66456.0,66455.0,0.027]
[1722415764940,0.24133795,66456.0,66455.0,0.027]
[1722415765172,0.452256,66456.0,66455.0,0.027]
[1722415765412,0.84323995,66456.0,66455.0,0.027]
[1722415765639,1.16418123,66456.0,66455.0,0.027]
[1722415766154,1.31487555,66456.0,66455.0,0.014]
[1722415766378,1.31487555,66456.0,66451.0,0.0015542]
[1722415766379,0.451453,66452.0,66451.0,0.0015542]
[1722415767110,0.54155101,66452.0,66451.0,0.0015542]
[1722415767356,0.56407551,66452.0,66451.0,0.0015542]
[1722415767591,0.451453,66452.0,66451.0,0.0015542]
[1722415767839,0.150484,66452.0,66451.0,0.0015542]
[1722415768075,0.300963,66454.0,66450.0,3.000913]
[1722415768313,0.300965,66453.0,66450.0,3.000913]
[1722415768544,0.150486,66452.0,66451.0,0.0015542]
[1722415769041,0.452455,66452.0,66451.0,0.019]
[1722415769263,0.451455,66452.0,66451.0,0.0095542]
[1722415770514,0.5867723,66452.0,66451.0,0.0095542]
[1722415770944,0.5867723,66452.0,66451.0,0.008913]
[1722415771177,1.03837434,66452.0,66451.0,0.0104672]
[1722415771413,0.96765704,66452.0,66451.0,0.0214672]
[1722415771886,0.96765704,66452.0,66451.0,0.019913]
[1722415772355,0.96765704,66452.0,66451.0,0.0214672]
[1722415772808,0.96765704,66452.0,66451.0,0.019913]
[1722415773030,0.96765704,66452.0,66451.0,0.0214672]
[1722415773710,0.96765704,66452.0,66451.0,0.019913]
[1722415774443,0.60308804,66452.0,66451.0,0.019913]
[1722415774698,0.60308804,66452.0,66451.0,0.1044672]
[1722415775212,0.60308804,66452.0,66451.0,0.102913]
[1722415775467,0.15163304,66452.0,66451.0,0.1044672]
[1722415775702,0.1363229,66452.0,66451.0,0.2549532]
[1722415775953,0.001,66452.0,66451.0,0.553372]
[1722415776190,0.001,66452.0,66451.0,0.615372]
[1722415776429,0.001,66452.0,66451.0,0.9178992]
[1722415776668,0.001,66452.0,66451.0,0.615372]
[1722415776904,0.001,66452.0,66451.0,0.916345]
[1722415777140,0.001,66452.0,66451.0,0.615372]
[1722415778128,0.001,66452.0,66451.0,0.916345]
[1722415778877,0.11375231,66452.0,66451.0,0.6169262]
[1722415779123,0.11375231,66452.0,66451.0,0.916345]
[1722415779369,0.001,66452.0,66451.0,0.9178992]
[1722415779614,0.001,66452.0,66451.0,0.916345]
[1722415779875,0.001,66452.0,66451.0,0.9178992]
[1722415780115,0.001,66452.0,66451.0,0.916345]
[1722415780362,0.001,66452.0,66451.0,0.9178992]
[1722415782098,0.001,66452.0,66451.0,0.916345]
[1722415785040,0.001,66452.0,66451.0,0.9178992]
[1722415785570,0.001,66452.0,66451.0,0.916345]
[1722415785802,0.001,66452.0,66451.0,0.9178992]
[1722415786046,0.001,66452.0,66451.0,0.916345]
[1722415786761,0.001,66452.0,66451.0,0.615372]
[1722415786994,0.001,66452.0,66451.0,0.101913]
[1722415787229,0.001,66452.0,66451.0,0.1034672]
[1722415787499,1.001,66452.0,66451.0,0.1034672]
[1722415787950,2.001,66452.0,66451.0,0.101913]
[1722415789466,2.01020206,66452.0,66451.0,0.101913]
[1722415790294,2.14338584,66452.0,66451.0,0.101913]
[1722415791286,2.14338584,66452.0,66451.0,0.10279792]
[1722415791480,2.14338584,66452.0,66451.0,0.101913]
[1722415792163,2.14338584,66452.0,66451.0,0.018913]
[1722415792164,3.19606021,66452.0,66451.0,0.018913]
[1722415792385,3.06068811,66452.0,66451.0,0.01996606]
[1722415792934,3.06068811,66452.0,66451.0,0.018913]
[1722415793112,3.06068883,66452.0,66451.0,0.018913]
[1722415793954,3.06068883,66452.0,66451.0,0.020444]
[1722415794110,3.06068883,66452.0,66451.0,0.018913]
[1722415794316,3.06068883,66452.0,66451.0,0.0204672]
[1722415794915,3.06068883,66452.0,66451.0,0.018913]
[1722415795117,3.06068883,66452.0,66451.0,0.0204672]
[1722415795343,2.97428883,66452.0,66451.0,0.0204672]
[1722415795521,2.97428881,66452.0,66451.0,0.0204672]
[1722415796295,3.12663335,66452.0,66451.0,0.0204672]
[1722415796807,3.12663335,66452.0,66451.0,0.018913]
[1722415797479,2.15866681,66452.0,66451.0,0.101813]
[1722415798015,2.30915081,66452.0,66451.0,0.101813]
[1722415798311,2.15866681,66452.0,66451.0,0.101813]
[1722415798515,2.30915081,66452.0,66451.0,0.101813]
[1722415799056,2.30915081,66452.0,66451.0,0.1033672]
[1722415799250,2.30915081,66452.0,66451.0,0.101813]
[1722415800341,2.61011981,66452.0,66451.0,0.101813]
[1722415800491,2.30915081,66452.0,66451.0,0.10319884]
[1722415800698,2.30915081,66452.0,66451.0,0.101813]
[1722415800910,2.00803377,66452.0,66451.0,0.252299]
[1722415801447,2.00803377,66452.0,66451.0,0.101813]
[1722415801652,2.00803377,66452.0,66451.0,0.252299]
[1722415802193,1.99864988,66452.0,66451.0,0.252299]
[1722415802414,2.00803314,66452.0,66451.0,0.252299]
[1722415803265,2.00803314,66452.0,66451.0,0.101813]
[1722415804038,2.00886314,66452.0,66451.0,0.101813]
[1722415804638,2.00886314,66452.0,66451.0,0.10302745]
[1722415805039,2.00886314,66452.0,66451.0,0.101813]
[1722415805315,2.16134803,66452.0,66451.0,0.101813]
[1722415805666,2.1613786,66452.0,66451.0,0.101813]
[1722415807074,2.1613786,66452.0,66451.0,0.10315632]
[1722415807517,2.1613786,66452.0,66451.0,0.101813]
[1722415809093,2.00886314,66452.0,66451.0,0.101813]
[1722415809273,2.16138938,66452.0,66451.0,0.101813]
[1722415809676,2.16138938,66452.0,66451.0,0.1033672]
[1722415809855,2.16138938,66452.0,66451.0,0.101813]
[1722415811284,2.16138938,66452.0,66451.0,0.1033672]
[1722415811459,2.31187338,66452.0,66451.0,0.101813]
[1722415811662,2.61284238,66452.0,66451.0,0.101813]
[1722415811870,2.67334238,66452.0,66451.0,0.018913]
[1722415812499,2.37237538,66452.0,66451.0,0.018913]
[1722415812703,2.31187538,66452.0,66451.0,0.018913]
[1722415814853,2.31187538,66452.0,66451.0,0.02023434]
[1722415815064,2.31187544,66452.0,66451.0,0.018913]
[1722415815236,2.16139144,66452.0,66451.0,0.169399]
[1722415815438,2.16139144,66452.0,66451.0,0.309499]
[1722415815599,2.16139144,66452.0,66451.0,0.31063583]
[1722415815961,2.16139144,66452.0,66451.0,0.309499]
[1722415815962,2.16139148,66452.0,66451.0,0.309499]
[1722415816193,2.16139148,66452.0,66451.0,1.298818]
[1722415816194,2.00886317,66452.0,66451.0,1.298818]
[1722415816407,1.99947988,66452.0,66451.0,1.298818]
[1722415816884,1.99947988,66452.0,66451.0,0.696872]
[1722415817095,1.99947988,66452.0,66451.0,0.997845]
[1722415819410,1.99947988,66452.0,66451.0,1.298818]
[1722415820026,1.99947988,66452.0,66451.0,0.997845]
[1722415820459,1.99947988,66452.0,66451.0,1.298818]
[1722415821077,2.11241414,66452.0,66451.0,1.298818]
[1722415821286,2.08981698,66452.0,66451.0,1.298818]
[1722415821955,2.06723162,66452.0,66451.0,1.298818]
[1722415822160,2.06723162,66452.0,66451.0,1.60097612]
[1722415822314,2.04463876,66452.0,66451.0,1.599791]
[1722415822519,1.99947988,66452.0,66451.0,1.72487283]
[1722415822722,1.99947988,66452.0,66451.0,1.71787283]
[1722415822932,1.99947988,66452.0,66451.0,1.71879162]
[1722415823132,1.99947988,66452.0,66451.0,1.72179162]
[1722415823340,1.99947988,66452.0,66451.0,1.72087283]
[1722415823562,1.99947988,66452.0,66451.0,1.73574878]
[1722415823759,1.99947988,66452.0,66451.0,1.73487283]
[1722415825360,1.99947988,66452.0,66451.0,1.43389983]
[1722415825742,1.99947988,66452.0,66451.0,1.73486734]
[1722415826177,1.99947988,66452.0,66451.0,1.73601564]
[1722415826376,1.99947988,66452.0,66451.0,1.73486734]
[1722415826803,1.99947988,66452.0,66451.0,1.73617151]
[1722415827140,1.99947988,66452.0,66451.0,1.73604513]
[1722415827272,1.99947988,66452.0,66451.0,1.73486734]
[1722415827899,1.99947988,66452.0,66451.0,1.73642154]
[1722415828102,1.99947988,66452.0,66451.0,1.73486734]
[1722415829070,1.99947988,66452.0,66451.0,1.73486707]
[1722415829353,1.99947988,66452.0,66451.0,1.73642127]
[1722415829563,1.99947988,66452.0,66451.0,1.73486707]
[1722415830129,1.99947988,66452.0,66451.0,1.609791]
[1722415832047,1.99947988,66452.0,66451.0,1.6113452]
[1722415832195,1.99947988,66452.0,66451.0,1.609791]
[1722415832399,1.99947988,66452.0,66451.0,1.6113452]
[1722415832601,1.99947988,66452.0,66451.0,1.609791]
[1722415833007,1.99947988,66452.0,66451.0,1.3103722]
[1722415833225,1.99947988,66452.0,66451.0,1.308818]
[1722415833417,1.99947988,66452.0,66451.0,1.222418]
[1722415833623,1.99947988,66452.0,66451.0,1.160718]
[1722415833879,1.99947988,66452.0,66451.0,1.0838722]
[1722415835116,2.04456411,66452.0,66451.0,1.0838722]
[1722415835539,2.04456411,66452.0,66451.0,1.082318]
[1722415836940,1.99947988,66452.0,66451.0,1.082318]
[1722415837145,2.04456307,66452.0,66451.0,1.168718]
[1722415837345,2.04456307,66452.0,66451.0,1.1702722]
[1722415837550,2.04456307,66452.0,66451.0,1.2508722]
[1722415838544,1.99947988,66452.0,66451.0,1.2508722]
[1722415839153,1.99947988,66452.0,66451.0,1.249318]
[1722415839519,1.99947988,66452.0,66451.0,1.25068778]
[1722415839724,1.99947988,66452.0,66451.0,0.78271478]
[1722415839725,2.06377988,66452.0,66451.0,0.78271478]
[1722415840235,2.13140466,66452.0,66451.0,0.781345]
[1722415840462,2.13140466,66452.0,66451.0,0.7828992]